[Event "Titled Tuesday Blitz May 4 2021"]
[White "Palchuk, Andrii"]
[Black "Sailer, Mike"]
[WhiteFideId "14176688"]
[BlackFideId "2012901"]
[WhiteElo "2184"]
[BlackElo "2109"]
[Result "1-0"]
[Round "04"]
[TimeControl "180+1"]
[Date "2021.05.04"]
[WhiteClock "0:00:03"]
[BlackClock "0:00:03"]

1. d4 {[%clk 0:03:00]}  d5 {[%clk 0:02:59]} 2. c4 {[%clk 0:03:00]}  Bf5 {[%clk 0:02:58]} 3. Nc3 {[%clk 0:02:50]}  e6 {[%clk 0:02:58]} 4. Nf3 {[%clk 0:02:48]}  Nc6 {[%clk 0:02:57]} 5. a3 {[%clk 0:02:45]}  Nf6 {[%clk 0:02:52]} 6. Bg5 {[%clk 0:02:41]}  Be7 {[%clk 0:02:52]} 7. e3 {[%clk 0:02:41]}  h6 {[%clk 0:02:51]} 8. Bh4 {[%clk 0:02:40]}  Ne4 {[%clk 0:02:51]} 9. Bxe7 {[%clk 0:02:38]}  Nxe7 {[%clk 0:02:52]} 10. Rc1 {[%clk 0:02:37]}  c6 {[%clk 0:02:51]} 11. Be2 {[%clk 0:02:35]}  O-O {[%clk 0:02:51]} 12. O-O {[%clk 0:02:34]}  Nxc3 {[%clk 0:02:39]} 13. Rxc3 {[%clk 0:02:33]}  a6 {[%clk 0:02:37]} 14. Qb3 {[%clk 0:02:07]}  Rb8 {[%clk 0:02:28]} 15. Nd2 {[%clk 0:02:01]}  Bh7 {[%clk 0:02:16]} 16. Qa2 {[%clk 0:01:43]}  Nf5 {[%clk 0:02:13]} 17. Nb3 {[%clk 0:01:36]}  Nd6 {[%clk 0:02:04]} 18. Nc5 {[%clk 0:01:23]}  Ne4 {[%clk 0:01:51]} 19. Nxe4 {[%clk 0:01:22]}  Bxe4 {[%clk 0:01:49]} 20. Bd3 {[%clk 0:01:13]}  Bxd3 {[%clk 0:01:42]} 21. Rxd3 {[%clk 0:01:14]}  dxc4 {[%clk 0:01:37]} 22. Qxc4 {[%clk 0:01:13]}  Qd5 {[%clk 0:01:37]} 23. Qc2 {[%clk 0:01:14]}  Rfd8 {[%clk 0:01:36]} 24. Rfd1 {[%clk 0:01:13]}  Rbc8 {[%clk 0:01:28]} 25. b4 {[%clk 0:01:05]}  Qf5 {[%clk 0:01:11]} 26. f3 {[%clk 0:00:57]}  e5 {[%clk 0:00:55]} 27. e4 {[%clk 0:00:56]}  Qg5 {[%clk 0:00:49]} 28. dxe5 {[%clk 0:00:27]}  Rxd3 {[%clk 0:00:47]} 29. Qxd3 {[%clk 0:00:28]}  Qxe5 {[%clk 0:00:45]} 30. Qd4 {[%clk 0:00:29]}  Qxd4+ {[%clk 0:00:32]} 31. Rxd4 {[%clk 0:00:29]}  Rc7 {[%clk 0:00:29]} 32. Rd8+ {[%clk 0:00:26]}  Kh7 {[%clk 0:00:30]} 33. Kf2 {[%clk 0:00:26]}  Kg6 {[%clk 0:00:30]} 34. f4 {[%clk 0:00:25]}  Kf6 {[%clk 0:00:31]} 35. Re8 {[%clk 0:00:23]}  h5 {[%clk 0:00:24]} 36. Ke3 {[%clk 0:00:20]}  Rd7 {[%clk 0:00:24]} 37. Rb8 {[%clk 0:00:18]}  g6 {[%clk 0:00:19]} 38. g3 {[%clk 0:00:18]}  Ke7 {[%clk 0:00:19]} 39. h3 {[%clk 0:00:18]}  Kd6 {[%clk 0:00:16]} 40. Rc8 {[%clk 0:00:15]}  Rc7 {[%clk 0:00:12]} 41. e5+ {[%clk 0:00:15]}  Kd7 {[%clk 0:00:12]} 42. Rh8 {[%clk 0:00:12]}  Ke7 {[%clk 0:00:12]} 43. Kd4 {[%clk 0:00:11]}  Rd7+ {[%clk 0:00:12]} 44. Kc3 {[%clk 0:00:12]}  Rd1 {[%clk 0:00:10]} 45. Rb8 {[%clk 0:00:11]}  Rd7 {[%clk 0:00:10]} 46. g4 {[%clk 0:00:11]}  hxg4 {[%clk 0:00:10]} 47. hxg4 {[%clk 0:00:12]}  Rc7 {[%clk 0:00:11]} 48. Kc4 {[%clk 0:00:11]}  Rd7 {[%clk 0:00:08]} 49. Kc5 {[%clk 0:00:10]}  Rd5+ {[%clk 0:00:07]} 50. Kb6 {[%clk 0:00:10]}  Rd4 {[%clk 0:00:08]} 51. Rxb7+ {[%clk 0:00:09]}  Ke6 {[%clk 0:00:08]} 52. f5+ {[%clk 0:00:10]}  gxf5 {[%clk 0:00:09]} 53. gxf5+ {[%clk 0:00:10]}  Kxf5 {[%clk 0:00:08]} 54. Rxf7+ {[%clk 0:00:09]}  Kxe5 {[%clk 0:00:09]} 55. Kxc6 {[%clk 0:00:09]}  Rd3 {[%clk 0:00:08]} 56. a4 {[%clk 0:00:09]}  Rc3+ {[%clk 0:00:07]} 57. Kb6 {[%clk 0:00:09]}  Rb3 {[%clk 0:00:08]} 58. Ka5 {[%clk 0:00:08]}  Kd4 {[%clk 0:00:07]} 59. Rf4+ {[%clk 0:00:08]}  Kc3 {[%clk 0:00:06]} 60. Kxa6 {[%clk 0:00:06]}  Ra3 {[%clk 0:00:05]} 61. a5 {[%clk 0:00:06]}  Ra4 {[%clk 0:00:04]} 62. Kb6 {[%clk 0:00:03]}  Ra1 {[%clk 0:00:03]} 63. a6 {[%clk 0:00:04]}  Kb3 {[%clk 0:00:03]} 64. a7 {[%clk 0:00:03]}  Ra4 {[%clk 0:00:02]} 65. Kb7 {[%clk 0:00:03]}  Rxb4+ {[%clk 0:00:02]} 66. Rxb4+ {[%clk 0:00:02]}  Kxb4 {[%clk 0:00:03]} 67. a8=Q {[%clk 0:00:03]} 1-0


[Site "https://www.chess.com"]

[Event "Titled Tuesday Blitz May 4 2021"]
[White "Pantzar, Milton"]
[Black "Lazavik, Denis"]
[WhiteFideId "1721003"]
[BlackFideId "13515110"]
[WhiteElo "2323"]
[BlackElo "2436"]
[Result "0-1"]
[Round "04"]
[TimeControl "180+1"]
[Date "2021.05.04"]
[WhiteClock "0:00:05"]
[BlackClock "0:00:14"]

1. c4 {[%clk 0:03:00]}  Nf6 {[%clk 0:02:58]} 2. Nc3 {[%clk 0:03:00]}  e6 {[%clk 0:02:52]} 3. e4 {[%clk 0:02:56]}  d5 {[%clk 0:02:51]} 4. e5 {[%clk 0:02:54]}  d4 {[%clk 0:02:49]} 5. exf6 {[%clk 0:02:54]}  dxc3 {[%clk 0:02:49]} 6. bxc3 {[%clk 0:02:55]}  Qxf6 {[%clk 0:02:49]} 7. d4 {[%clk 0:02:55]}  b6 {[%clk 0:02:45]} 8. Be2 {[%clk 0:02:55]}  Bb7 {[%clk 0:02:42]} 9. Bf3 {[%clk 0:02:55]}  Bxf3 {[%clk 0:02:40]} 10. Nxf3 {[%clk 0:02:56]}  Bd6 {[%clk 0:02:39]} 11. Qa4+ {[%clk 0:02:42]}  c6 {[%clk 0:02:33]} 12. Ba3 {[%clk 0:02:40]}  Bxa3 {[%clk 0:02:27]} 13. Qxa3 {[%clk 0:02:41]}  Qe7 {[%clk 0:02:28]} 14. Qa4 {[%clk 0:02:36]}  O-O {[%clk 0:02:27]} 15. O-O {[%clk 0:02:36]}  Qc7 {[%clk 0:02:23]} 16. Ne5 {[%clk 0:02:31]}  Rc8 {[%clk 0:02:13]} 17. Rae1 {[%clk 0:02:20]}  Nd7 {[%clk 0:02:11]} 18. f4 {[%clk 0:02:20]}  b5 {[%clk 0:01:59]} 19. Qc2 {[%clk 0:02:18]}  bxc4 {[%clk 0:01:56]} 20. f5 {[%clk 0:02:08]}  Nxe5 {[%clk 0:01:48]} 21. Rxe5 {[%clk 0:02:06]}  exf5 {[%clk 0:01:48]} 22. Qxf5 {[%clk 0:02:07]}  Re8 {[%clk 0:01:45]} 23. Rc5 {[%clk 0:01:53]}  Re2 {[%clk 0:01:26]} 24. Rxc4 {[%clk 0:01:49]}  Rae8 {[%clk 0:01:18]} 25. Qf3 {[%clk 0:01:34]}  Re1 {[%clk 0:00:57]} 26. Rxc6 {[%clk 0:01:06]}  Rxf1+ {[%clk 0:00:55]} 27. Kxf1 {[%clk 0:01:07]}  Qb7 {[%clk 0:00:38]} 28. g3 {[%clk 0:00:28]}  Qb2 {[%clk 0:00:28]} 29. Qe3 {[%clk 0:00:11]}  Rb8 {[%clk 0:00:17]} 30. Rc5 {[%clk 0:00:05]}  Qxa2 {[%clk 0:00:14]} 0-1


[Site "https://www.chess.com"]

[Event "Titled Tuesday Blitz May 4 2021"]
[White "Pein, Jonathan"]
[Black "Arias, Juan Cruz"]
[WhiteFideId "417092"]
[BlackFideId "118540"]
[WhiteElo "2167"]
[BlackElo "2083"]
[Result "1-0"]
[Round "04"]
[TimeControl "180+1"]
[Date "2021.05.04"]
[WhiteClock "0:00:33"]
[BlackClock "0:01:07"]

1. e4 {[%clk 0:03:00]}  e6 {[%clk 0:02:59]} 2. d3 {[%clk 0:03:00]}  d5 {[%clk 0:02:58]} 3. Nd2 {[%clk 0:03:01]}  Nf6 {[%clk 0:02:58]} 4. Ngf3 {[%clk 0:03:01]}  Nc6 {[%clk 0:02:58]} 5. e5 {[%clk 0:02:53]}  Nd7 {[%clk 0:02:58]} 6. d4 {[%clk 0:02:53]}  f6 {[%clk 0:02:58]} 7. exf6 {[%clk 0:02:53]}  Nxf6 {[%clk 0:02:59]} 8. Bd3 {[%clk 0:02:53]}  Bd6 {[%clk 0:02:57]} 9. O-O {[%clk 0:02:51]}  O-O {[%clk 0:02:57]} 10. Re1 {[%clk 0:02:48]}  Bd7 {[%clk 0:02:53]} 11. c4 {[%clk 0:02:46]}  dxc4 {[%clk 0:02:36]} 12. Bxc4 {[%clk 0:02:46]}  Nd5 {[%clk 0:02:32]} 13. Ne4 {[%clk 0:02:43]}  h6 {[%clk 0:02:13]} 14. Nxd6 {[%clk 0:02:35]}  cxd6 {[%clk 0:02:13]} 15. Bxd5 {[%clk 0:02:28]}  exd5 {[%clk 0:02:13]} 16. Qb3 {[%clk 0:02:28]}  Ne7 {[%clk 0:02:06]} 17. Bd2 {[%clk 0:02:07]}  b6 {[%clk 0:02:02]} 18. Bb4 {[%clk 0:02:05]}  Bg4 {[%clk 0:02:02]} 19. Re3 {[%clk 0:02:00]}  Kh8 {[%clk 0:01:58]} 20. Rae1 {[%clk 0:02:00]}  Nf5 {[%clk 0:01:58]} 21. Rd3 {[%clk 0:01:24]}  Bxf3 {[%clk 0:01:57]} 22. Rxf3 {[%clk 0:01:25]}  Nxd4 {[%clk 0:01:56]} 23. Rxf8+ {[%clk 0:01:24]}  Qxf8 {[%clk 0:01:57]} 24. Qxd5 {[%clk 0:01:18]}  Nf5 {[%clk 0:01:39]} 25. g3 {[%clk 0:01:01]}  Rd8 {[%clk 0:01:33]} 26. Re6 {[%clk 0:00:52]}  Ne7 {[%clk 0:01:28]} 27. Qe4 {[%clk 0:00:47]}  Nc8 {[%clk 0:01:24]} 28. Rxh6+ {[%clk 0:00:34]}  Kg8 {[%clk 0:01:08]} 29. Qe6+ {[%clk 0:00:33]}  Qf7 {[%clk 0:01:07]} 30. Rh8+ {[%clk 0:00:33]} 1-0


[Site "https://www.chess.com"]

[Event "Titled Tuesday Blitz May 4 2021"]
[White "Perez, Maximiliano"]
[Black "Saucey, Michel"]
[WhiteFideId "117234"]
[BlackFideId "601845"]
[WhiteElo "2368"]
[BlackElo "2253"]
[Result "1-0"]
[Round "04"]
[TimeControl "180+1"]
[Date "2021.05.04"]
[WhiteClock "0:02:04"]
[BlackClock "0:01:38"]

1. e4 {[%clk 0:03:00]}  c5 {[%clk 0:02:58]} 2. Nf3 {[%clk 0:03:00]}  e6 {[%clk 0:02:58]} 3. d3 {[%clk 0:02:57]}  Nc6 {[%clk 0:02:57]} 4. g3 {[%clk 0:02:56]}  d5 {[%clk 0:02:56]} 5. Nbd2 {[%clk 0:02:55]}  Nf6 {[%clk 0:02:55]} 6. Bg2 {[%clk 0:02:56]}  g6 {[%clk 0:02:55]} 7. O-O {[%clk 0:02:56]}  Bg7 {[%clk 0:02:55]} 8. Re1 {[%clk 0:02:56]}  O-O {[%clk 0:02:55]} 9. c3 {[%clk 0:02:57]}  Rb8 {[%clk 0:02:53]} 10. e5 {[%clk 0:02:55]}  Nd7 {[%clk 0:02:52]} 11. d4 {[%clk 0:02:56]}  b5 {[%clk 0:02:50]} 12. a3 {[%clk 0:02:50]}  a5 {[%clk 0:02:47]} 13. h4 {[%clk 0:02:49]}  b4 {[%clk 0:02:46]} 14. axb4 {[%clk 0:02:50]}  axb4 {[%clk 0:02:46]} 15. Nf1 {[%clk 0:02:43]}  bxc3 {[%clk 0:02:35]} 16. bxc3 {[%clk 0:02:44]}  Na5 {[%clk 0:02:31]} 17. Bg5 {[%clk 0:02:35]}  Qc7 {[%clk 0:02:27]} 18. Ne3 {[%clk 0:02:31]}  Nb3 {[%clk 0:02:22]} 19. Rb1 {[%clk 0:02:25]}  cxd4 {[%clk 0:02:18]} 20. cxd4 {[%clk 0:02:23]}  Na5 {[%clk 0:02:17]} 21. Rc1 {[%clk 0:02:18]}  Qa7 {[%clk 0:02:14]} 22. Ng4 {[%clk 0:02:17]}  Nc4 {[%clk 0:02:09]} 23. h5 {[%clk 0:02:09]}  Rb2 {[%clk 0:01:48]} 24. Bf6 {[%clk 0:02:04]}  Nxf6 {[%clk 0:01:38]} 25. exf6 {[%clk 0:02:04]}  Bh8 {[%clk 0:01:38]} 26. Nh6# {[%clk 0:02:04]} 1-0


[Site "https://www.chess.com"]

[Event "Titled Tuesday Blitz May 4 2021"]
[White "Piccoli, Lucas Fonseca"]
[Black "tylityli"]
[WhiteFideId "2190788"]
[WhiteElo "1776"]
[BlackElo "2334"]
[Result "0-1"]
[Round "04"]
[TimeControl "180+1"]
[Date "2021.05.04"]
[WhiteClock "0:00:45"]
[BlackClock "0:00:48"]

1. e4 {[%clk 0:03:00]}  e5 {[%clk 0:02:59]} 2. Nf3 {[%clk 0:03:00]}  Nc6 {[%clk 0:03:00]} 3. d4 {[%clk 0:03:01]}  exd4 {[%clk 0:02:59]} 4. Bc4 {[%clk 0:03:02]}  Nf6 {[%clk 0:02:59]} 5. e5 {[%clk 0:03:02]}  d5 {[%clk 0:02:59]} 6. Bb5 {[%clk 0:03:03]}  Ne4 {[%clk 0:02:58]} 7. Nxd4 {[%clk 0:03:01]}  Bd7 {[%clk 0:02:58]} 8. Bxc6 {[%clk 0:02:59]}  bxc6 {[%clk 0:02:59]} 9. f3 {[%clk 0:03:00]}  Qh4+ {[%clk 0:02:53]} 10. g3 {[%clk 0:02:57]}  Nxg3 {[%clk 0:02:52]} 11. hxg3 {[%clk 0:02:49]}  Qxh1+ {[%clk 0:02:50]} 12. Ke2 {[%clk 0:02:50]}  Qg2+ {[%clk 0:02:48]} 13. Ke3 {[%clk 0:02:49]}  Qxg3 {[%clk 0:02:48]} 14. Nc3 {[%clk 0:02:39]}  Qxe5+ {[%clk 0:02:47]} 15. Kd3 {[%clk 0:02:32]}  c5 {[%clk 0:02:32]} 16. Nde2 {[%clk 0:02:23]}  d4 {[%clk 0:02:18]} 17. Bf4 {[%clk 0:02:20]}  Bf5+ {[%clk 0:02:06]} 18. Ne4 {[%clk 0:02:19]}  Qd5 {[%clk 0:01:59]} 19. b3 {[%clk 0:02:19]}  Bd6 {[%clk 0:01:52]} 20. Qg1 {[%clk 0:02:13]}  Bg6 {[%clk 0:01:45]} 21. Bxd6 {[%clk 0:01:44]}  cxd6 {[%clk 0:01:43]} 22. Nf4 {[%clk 0:01:42]}  Qf5 {[%clk 0:01:26]} 23. Nxg6 {[%clk 0:01:22]}  hxg6 {[%clk 0:01:27]} 24. Kd2 {[%clk 0:01:14]}  O-O-O {[%clk 0:01:23]} 25. Qg3 {[%clk 0:01:10]}  Qe5 {[%clk 0:01:17]} 26. Qxe5 {[%clk 0:01:04]}  dxe5 {[%clk 0:01:18]} 27. Nxc5 {[%clk 0:01:05]}  Kc7 {[%clk 0:01:11]} 28. Ne4 {[%clk 0:01:03]}  f5 {[%clk 0:01:08]} 29. Ng5 {[%clk 0:01:01]}  Rd7 {[%clk 0:01:05]} 30. Re1 {[%clk 0:01:01]}  Kd6 {[%clk 0:01:03]} 31. c4 {[%clk 0:01:00]}  Rh2+ {[%clk 0:01:01]} 32. Kd3 {[%clk 0:01:00]}  Rxa2 {[%clk 0:01:00]} 33. c5+ {[%clk 0:00:59]}  Kd5 {[%clk 0:00:56]} 34. Rc1 {[%clk 0:00:50]}  Rb7 {[%clk 0:00:52]} 35. Rc2 {[%clk 0:00:43]}  Rxb3+ {[%clk 0:00:51]} 36. Kd2 {[%clk 0:00:43]}  Rxc2+ {[%clk 0:00:48]} 37. Kxc2 {[%clk 0:00:44]}  Rc3+ {[%clk 0:00:48]} 38. Kd2 {[%clk 0:00:45]}  Rxc5 {[%clk 0:00:48]} 0-1


[Site "https://www.chess.com"]

[Event "Titled Tuesday Blitz May 4 2021"]
[White "Poormosavi, Seyed Kian"]
[Black "Region_07"]
[WhiteFideId "12585807"]
[WhiteElo "2134"]
[BlackElo "2375"]
[Result "0-1"]
[Round "04"]
[TimeControl "180+1"]
[Date "2021.05.04"]
[WhiteClock "0:00:10"]
[BlackClock "0:00:04"]

1. e4 {[%clk 0:03:00]}  Nc6 {[%clk 0:02:57]} 2. d4 {[%clk 0:03:00]}  d5 {[%clk 0:02:57]} 3. e5 {[%clk 0:02:59]}  f6 {[%clk 0:02:55]} 4. exf6 {[%clk 0:02:58]}  Nxf6 {[%clk 0:02:54]} 5. c3 {[%clk 0:02:59]}  e5 {[%clk 0:02:50]} 6. dxe5 {[%clk 0:02:57]}  Nxe5 {[%clk 0:02:51]} 7. Nf3 {[%clk 0:02:57]}  Bd6 {[%clk 0:02:46]} 8. Nxe5 {[%clk 0:02:54]}  Bxe5 {[%clk 0:02:46]} 9. Bd3 {[%clk 0:02:55]}  O-O {[%clk 0:02:45]} 10. Nd2 {[%clk 0:02:52]}  c6 {[%clk 0:02:25]} 11. O-O {[%clk 0:02:50]}  Bxh2+ {[%clk 0:02:12]} 12. Kxh2 {[%clk 0:02:51]}  Ng4+ {[%clk 0:02:11]} 13. Kg3 {[%clk 0:02:51]}  h5 {[%clk 0:01:29]} 14. Nf3 {[%clk 0:01:57]}  Qd6+ {[%clk 0:01:27]} 15. Kh4 {[%clk 0:01:56]}  Nxf2 {[%clk 0:00:19]} 16. Qe2 {[%clk 0:00:45]}  Rf4+ {[%clk 0:00:14]} 17. Kg3 {[%clk 0:00:46]}  Re4+ {[%clk 0:00:10]} 18. Kxf2 {[%clk 0:00:46]}  Rxe2+ {[%clk 0:00:10]} 19. Kxe2 {[%clk 0:00:47]}  Bg4 {[%clk 0:00:10]} 20. Kd2 {[%clk 0:00:46]}  Re8 {[%clk 0:00:10]} 21. Kc2 {[%clk 0:00:46]}  Qd7 {[%clk 0:00:08]} 22. Bf4 {[%clk 0:00:43]}  Bf5 {[%clk 0:00:08]} 23. Bg5 {[%clk 0:00:14]}  Re2+ {[%clk 0:00:06]} 24. Nd2 {[%clk 0:00:12]}  Bxd3+ {[%clk 0:00:06]} 25. Kxd3 {[%clk 0:00:13]}  Rxg2 {[%clk 0:00:06]} 26. Be3 {[%clk 0:00:13]}  Qg4 {[%clk 0:00:05]} 27. Rae1 {[%clk 0:00:11]}  Qg6+ {[%clk 0:00:05]} 28. Kd4 {[%clk 0:00:11]}  Rg4+ {[%clk 0:00:03]} 29. Kc5 {[%clk 0:00:10]}  b6# {[%clk 0:00:04]} 0-1


[Site "https://www.chess.com"]

[Event "Titled Tuesday Blitz May 4 2021"]
[White "Prithu Gupta"]
[Black "Shapkin, Anatoliy"]
[WhiteFideId "46618546"]
[BlackFideId "34108332"]
[WhiteElo "1775"]
[BlackElo "2221"]
[Result "1-0"]
[Round "04"]
[TimeControl "180+1"]
[Date "2021.05.04"]
[WhiteClock "0:00:19"]
[BlackClock "0:00:04"]

1. d4 {[%clk 0:03:00]}  Nf6 {[%clk 0:02:52]} 2. Nf3 {[%clk 0:02:53]}  g6 {[%clk 0:02:51]} 3. g3 {[%clk 0:02:50]}  Bg7 {[%clk 0:02:49]} 4. Bg2 {[%clk 0:02:50]}  c5 {[%clk 0:02:49]} 5. d5 {[%clk 0:02:29]}  b5 {[%clk 0:02:48]} 6. O-O {[%clk 0:02:29]}  d6 {[%clk 0:02:45]} 7. c4 {[%clk 0:02:27]}  O-O {[%clk 0:02:38]} 8. Na3 {[%clk 0:02:01]}  b4 {[%clk 0:02:29]} 9. Nc2 {[%clk 0:02:01]}  a5 {[%clk 0:02:29]} 10. Rb1 {[%clk 0:02:01]}  a4 {[%clk 0:02:28]} 11. Nd2 {[%clk 0:01:59]}  Nbd7 {[%clk 0:02:12]} 12. b3 {[%clk 0:01:56]}  axb3 {[%clk 0:01:57]} 13. axb3 {[%clk 0:01:55]}  Nb6 {[%clk 0:01:54]} 14. e4 {[%clk 0:01:53]}  e5 {[%clk 0:01:38]} 15. dxe6 {[%clk 0:01:48]}  Bxe6 {[%clk 0:01:38]} 16. Bb2 {[%clk 0:01:45]}  Ra2 {[%clk 0:01:14]} 17. Ne3 {[%clk 0:01:44]}  Nfd7 {[%clk 0:01:02]} 18. Bxg7 {[%clk 0:01:42]}  Kxg7 {[%clk 0:01:03]} 19. Nf3 {[%clk 0:01:38]}  Ne5 {[%clk 0:00:54]} 20. Nxe5 {[%clk 0:01:38]}  dxe5 {[%clk 0:00:55]} 21. Nd5 {[%clk 0:01:39]}  Bxd5 {[%clk 0:00:33]} 22. cxd5 {[%clk 0:01:39]}  Qd6 {[%clk 0:00:29]} 23. Ra1 {[%clk 0:01:40]}  Rfa8 {[%clk 0:00:29]} 24. Rxa2 {[%clk 0:01:38]}  Rxa2 {[%clk 0:00:30]} 25. f4 {[%clk 0:01:38]}  f6 {[%clk 0:00:23]} 26. Kh1 {[%clk 0:01:30]}  Rb2 {[%clk 0:00:17]} 27. Qa1 {[%clk 0:01:15]}  Rxb3 {[%clk 0:00:15]} 28. Qa7+ {[%clk 0:01:15]}  Kh6 {[%clk 0:00:14]} 29. fxe5 {[%clk 0:01:12]}  fxe5 {[%clk 0:00:13]} 30. Rf7 {[%clk 0:01:10]}  Rb1+ {[%clk 0:00:13]} 31. Bf1 {[%clk 0:01:10]}  Nxd5 {[%clk 0:00:05]} 32. exd5 {[%clk 0:00:27]}  Qxd5+ {[%clk 0:00:06]} 33. Kg1 {[%clk 0:00:27]}  Qd4+ {[%clk 0:00:06]} 34. Kh1 {[%clk 0:00:19]}  Qd5+ {[%clk 0:00:06]} 35. Kg1 {[%clk 0:00:20]}  Qd4+ {[%clk 0:00:07]} 36. Kg2 {[%clk 0:00:18]}  Qe4+ {[%clk 0:00:06]} 37. Kh3 {[%clk 0:00:18]}  Qd5 {[%clk 0:00:02]} 38. Rxh7+ {[%clk 0:00:17]}  Kg5 {[%clk 0:00:02]} 39. Qe7+ {[%clk 0:00:18]}  Kf5 {[%clk 0:00:03]} 40. Rf7+ {[%clk 0:00:18]}  Ke4 {[%clk 0:00:03]} 41. Bg2+ {[%clk 0:00:18]}  Kd4 {[%clk 0:00:04]} 42. Bxd5 {[%clk 0:00:19]} 1-0


[Site "https://www.chess.com"]

[Event "Titled Tuesday Blitz May 4 2021"]
[White "Prydun, Andriy"]
[Black "Domingo Nunez, Alejandro"]
[WhiteFideId "14145898"]
[BlackFideId "22245561"]
[WhiteElo "2033"]
[BlackElo "2269"]
[Result "1-0"]
[Round "04"]
[TimeControl "180+1"]
[Date "2021.05.04"]
[WhiteClock "0:02:13"]
[BlackClock "0:00:43"]

1. d4 {[%clk 0:03:00]}  Nf6 {[%clk 0:02:53]} 2. Nc3 {[%clk 0:03:01]}  d5 {[%clk 0:02:45]} 3. Bf4 {[%clk 0:03:01]}  g6 {[%clk 0:02:42]} 4. e3 {[%clk 0:03:01]}  Bg7 {[%clk 0:02:43]} 5. h4 {[%clk 0:03:01]}  Bf5 {[%clk 0:02:37]} 6. f3 {[%clk 0:02:59]}  h5 {[%clk 0:02:34]} 7. Qe2 {[%clk 0:02:58]}  c5 {[%clk 0:02:25]} 8. O-O-O {[%clk 0:02:56]}  cxd4 {[%clk 0:02:20]} 9. Rxd4 {[%clk 0:02:55]}  Nc6 {[%clk 0:02:17]} 10. Rd1 {[%clk 0:02:55]}  e5 {[%clk 0:02:14]} 11. Bg5 {[%clk 0:02:54]}  Ne7 {[%clk 0:01:53]} 12. e4 {[%clk 0:02:47]}  Be6 {[%clk 0:01:48]} 13. exd5 {[%clk 0:02:39]}  Nexd5 {[%clk 0:01:48]} 14. Nxd5 {[%clk 0:02:36]}  Bxd5 {[%clk 0:01:48]} 15. Qb5+ {[%clk 0:02:29]}  Kf8 {[%clk 0:01:37]} 16. Bxf6 {[%clk 0:02:29]}  Qxf6 {[%clk 0:01:33]} 17. Qxd5 {[%clk 0:02:27]}  e4 {[%clk 0:01:33]} 18. Qd6+ {[%clk 0:02:23]}  Qxd6 {[%clk 0:01:31]} 19. Rxd6 {[%clk 0:02:24]}  exf3 {[%clk 0:01:29]} 20. Nxf3 {[%clk 0:02:24]}  Re8 {[%clk 0:01:28]} 21. Bc4 {[%clk 0:02:23]}  Bh6+ {[%clk 0:01:27]} 22. Ng5 {[%clk 0:02:21]}  Kg7 {[%clk 0:01:16]} 23. Rd7 {[%clk 0:02:19]}  Rhf8 {[%clk 0:01:13]} 24. Rf1 {[%clk 0:02:19]}  b5 {[%clk 0:00:59]} 25. Rfxf7+ {[%clk 0:02:15]}  Rxf7 {[%clk 0:00:58]} 26. Rxf7+ {[%clk 0:02:16]}  Kg8 {[%clk 0:00:43]} 27. Re7+ {[%clk 0:02:13]} 1-0


[Site "https://www.chess.com"]

[Event "Titled Tuesday Blitz May 4 2021"]
[White "Qi, Henry"]
[Black "Kaufman, Raymond"]
[WhiteFideId "2073188"]
[BlackFideId "2015056"]
[WhiteElo "2123"]
[BlackElo "2321"]
[Result "0-1"]
[Round "04"]
[TimeControl "180+1"]
[Date "2021.05.04"]
[WhiteClock "0:00:19"]
[BlackClock "0:00:53"]

1. d4 {[%clk 0:03:00]}  Nf6 {[%clk 0:02:52]} 2. c4 {[%clk 0:03:00]}  e6 {[%clk 0:02:47]} 3. Nc3 {[%clk 0:03:00]}  Bb4 {[%clk 0:02:46]} 4. a3 {[%clk 0:03:01]}  Bxc3+ {[%clk 0:02:46]} 5. bxc3 {[%clk 0:03:01]}  c5 {[%clk 0:02:46]} 6. f3 {[%clk 0:03:01]}  b6 {[%clk 0:02:44]} 7. e4 {[%clk 0:03:02]}  Nc6 {[%clk 0:02:43]} 8. Bg5 {[%clk 0:03:00]}  Ba6 {[%clk 0:02:29]} 9. e5 {[%clk 0:02:48]}  h6 {[%clk 0:02:29]} 10. Bh4 {[%clk 0:02:48]}  g5 {[%clk 0:02:29]} 11. Bf2 {[%clk 0:02:48]}  Nh5 {[%clk 0:02:25]} 12. h4 {[%clk 0:02:48]}  Nf4 {[%clk 0:02:06]} 13. Nh3 {[%clk 0:01:38]}  Nxh3 {[%clk 0:01:50]} 14. Rxh3 {[%clk 0:01:38]}  Na5 {[%clk 0:01:42]} 15. Qc1 {[%clk 0:01:19]}  Nb3 {[%clk 0:01:33]} 16. Qb1 {[%clk 0:01:15]}  Nxa1 {[%clk 0:01:33]} 17. Qxa1 {[%clk 0:01:16]}  cxd4 {[%clk 0:01:31]} 18. cxd4 {[%clk 0:01:14]}  Rc8 {[%clk 0:01:31]} 19. Qc1 {[%clk 0:01:09]}  g4 {[%clk 0:01:19]} 20. fxg4 {[%clk 0:01:07]}  Bxc4 {[%clk 0:01:19]} 21. Bxc4 {[%clk 0:01:07]}  b5 {[%clk 0:01:19]} 22. Be3 {[%clk 0:00:55]}  Rxc4 {[%clk 0:01:18]} 23. Qd2 {[%clk 0:00:55]}  Qc7 {[%clk 0:00:59]} 24. Bxh6 {[%clk 0:00:51]}  Rc2 {[%clk 0:00:58]} 25. Qg5 {[%clk 0:00:42]}  Qc4 {[%clk 0:00:57]} 26. Re3 {[%clk 0:00:21]}  Qxd4 {[%clk 0:00:53]} 27. Qg7 {[%clk 0:00:19]}  Qd2+ {[%clk 0:00:53]} 0-1


[Site "https://www.chess.com"]